Cogmind - Beta 10.2 @@@ ROGUE MODE // 2022.01.27 @ 13:49:16 Player: Jezoensis Result: Self-destructed Performance ------------- Evolutions (1) 500 Regions Visited (5) 1000 Robots Destroyed (41) 205 Value Destroyed (855) 855 Prototype IDs (6) 120 Alien Tech Used (0) 0 Bonus (0) 0 TOTAL SCORE: 2680 Bonus ------- None Cogmind --------- Core Integrity 358/400 Matter 300/300 Energy 265/265 System Corruption 2% Temperature Cool (0) Movement Treading (160) Location -9/Exiles Parts ------- > --- POWER (1) -------- Improved Ion Engine > --- PROPULSION (3) --- Light Treads Light Treads Light Treads > --- UTILITY (3) ------ Large Storage Unit Large Storage Unit Improved Terrain Scanner > --- WEAPON (2) ------- Advanced Beam Cannon Advanced Beam Cannon > --- INVENTORY (16) --- Improved Ion Engine Light Treads Light Treads Light Treads Improved Treads Improved Treads Disposable Heat Sink High-capacity Storage Unit Terrain Scan Processor Light Armor Plating Light EM Pulse Cannon Advanced Beam Cannon Advanced Beam Cannon Improved Light Cannon Rocket Launcher Mining Laser Peak State ------------ > --- POWER ------------ Improved Ion Engine > --- PROPULSION ------- Light Treads Light Treads Light Treads > --- UTILITY ---------- Large Storage Unit Large Storage Unit Hacking Suite > --- WEAPON ----------- Improved EM Shotgun Advanced Beam Cannon > --- INVENTORY -------- Light Treads Light Treads Light Treads Light Treads Disposable Heat Sink High-capacity Storage Unit Improved Terrain Scanner Light Armor Plating Heavy EM Pulse Gun Heavy EM Pulse Gun Advanced Beam Cannon Advanced Beam Cannon Advanced Beam Cannon Advanced Beam Cannon Improved Assault Rifle Mining Laser [Rating: 19] Favorites ----------- Power Ion Engine Engine Ion Engine Propulsion Light Treads Treads Light Treads Utility Large Storage Unit Device Improved Terrain Scanner Storage Large Storage Unit Hackware Hacking Suite Protection Light Armor Plating Weapon Assault Rifle Energy Gun Heavy EM Pulse Gun Energy Cannon Advanced Beam Cannon Ballistic Gun Assault Rifle Special Weapon Mining Laser Build | -11 -10 -10 -9 -9 -9 ------- Run | Scr Mat Min Mat Min Exi Slots Evolved 2 | . . . 2 . . Power . | . . . . . . Propulsion 1 | . . . 1 . . Utility 1 | . . . 1 . . Weapon . | . . . . . . Parts Attached 65 | 8 18 4 34 1 . Power 4 | 1 1 . 2 . . Engine 4 | 1 1 . 2 . . Core . | . . . . . . Reactor . | . . . . . . Propulsion 10 | 2 . . 8 . . Treads 10 | 2 . . 8 . . Leg . | . . . . . . Wheel . | . . . . . . Hover . | . . . . . . Flight . | . . . . . . Utility 22 | 2 6 . 14 . . Device 13 | 1 3 . 9 . . Storage 3 | 1 1 . 1 . . Processor . | . . . . . . Hackware 1 | . . . 1 . . Protection 5 | . 2 . 3 . . Artifact . | . . . . . . Weapon 29 | 3 11 4 10 1 . Energy Gun 10 | 1 6 2 1 . . Energy Cannon 7 | . . . 6 1 . Ballistic Gun 4 | 2 1 . 1 . . Ballistic Cannon . | . . . . . . Launcher . | . . . . . . Special Weapon 8 | . 4 2 2 . . Impact Weapon . | . . . . . . Slashing Weapon . | . . . . . . Piercing Weapon . | . . . . . . Special Melee Weapon . | . . . . . . Unidentified Prototypes 2 | . . . 2 . . Parts Lost . | . . . . . . Power . | . . . . . . Propulsion . | . . . . . . Utility . | . . . . . . Weapon . | . . . . . . Highest Loss Streak . | . . . . . . Average Slot Usage (%) 99 | . 100 100 98 100 100 Engine 12 | . 14 14 11 11 11 Treads 30 | . 28 28 33 33 33 Device 11 | . 13 14 8 11 11 Storage 16 | . 14 14 19 22 22 Energy Gun 8 | . 12 5 7 . . Energy Cannon 6 | . . . 10 22 22 Ballistic Gun 8 | . 13 14 3 . . Special Weapon 1 | . 1 8 . . . Naked Turns . | . . . . . . Heaviest Build 50 | 14 27 27 50 48 48 Greatest Support 60 | 40 40 40 60 60 60 Greatest Overweight (x) . | . . . . . . Average Overweight (x) . | . . . . . . Largest Inventory Capacity 16 | 6 10 10 16 16 16 Average Capacity 10 | 5 7 10 14 16 16 Most Carried 16 | 4 10 10 16 16 16 Average Carried 9 | 2 6 10 13 15 16 Final Capacity 16 | 6 10 10 16 16 16 Final Carried 16 | 4 10 10 16 16 16 Class Distribution -------------------- 67% | Mutant 32% | Scavenger-Mutant Dominant Class ---------------- Mutant | -10/Materials Mutant | -10/Mines Scavenger-Mutant | -9/Materials Scavenger-Mutant | -9/Mines Scavenger-Mutant | -9/Exiles Resources | -11 -10 -10 -9 -9 -9 ----------- Run | Scr Mat Min Mat Min Exi Matter Collected 1053 | 322 225 7 466 33 . Remotely . | . . . . . . Salvage Created 1416 | 185 519 7 704 1 . Parts 95 | 14 25 . 54 2 . Haulers Intercepted 5 | . 2 . 3 . . Recyclers Shooed . | . . . . . . Parts Field Recycled . | . . . . . . Retrieved Matter . | . . . . . . Parts Self-Destructed . | . . . . . . Prevented . | . . . . . . Kills | -11 -10 -10 -9 -9 -9 ------- Run | Scr Mat Min Mat Min Exi Combat Hostiles Destroyed 20 | . 11 1 8 . . Guns 16 | . 11 1 4 . . Cannons 3 | . . . 3 . . AOE 1 | . . . 1 . . Classes Destroyed 10 | 3 5 1 1 . . Worker 2 | 2 . . . . . Tunneler 7 | 5 1 . . 1 . Hauler 5 | . 2 . 3 . . Recycler 2 | 1 . . 1 . . Operator 2 | . 1 . 1 . . Watcher 4 | . 1 . 3 . . Swarmer 3 | . 3 . . . . Grunt 10 | . 8 . 2 . . Sentry 6 | . . . 6 . . Assembled 1 | . . 1 . . . Best Kill Streak 3 | 3 3 1 3 1 . Combat Bots Only 3 | . 3 1 2 . . Max Kills in Single Turn 1 | 1 1 1 1 1 . Gunslinging . | . . . . . . Exploded 1 | . . . 1 . . Melee . | . . . . . . Uniques/NPCs Destroyed . | . . . . . . Combat | -11 -10 -10 -9 -9 -9 -------- Run | Scr Mat Min Mat Min Exi Damage Taken 957 | . 378 80 499 . . Core 136 | . 94 . 42 . . Absorbed by Shields . | . . . . . . Core Remaining (%) 81 | 100 . 62 . . . Volleys Fired 114 | 14 40 10 50 . . Largest 2 | 2 2 2 2 . . Hottest 136 | 70 100 100 136 . . Shots Fired 209 | 28 73 14 94 . . Gun 153 | 28 66 8 51 . . Cannon 38 | . . . 38 . . Launcher . | . . . . . . Special 18 | . 7 6 5 . . Kinetic 72 | 14 33 4 21 . . Thermal 96 | 14 29 10 43 . . Explosive . | . . . . . . Electromagnetic 41 | . 11 . 30 . . Robot Hit Streak 15 | 6 15 6 11 . . Robot Miss Streak 5 | 5 4 3 5 . . Penetration Max . | . . . . . . Secondary Targets 2 | . 2 . . . . Max Gunslinging Chain 1 | . 1 . . . . Shots Hit Robots 132 | 14 50 6 62 . . Core Hits 71 | 8 33 6 24 . . Critical Hits 3 | . . . 3 . . Critical Kills 1 | . . . 1 . . Critical Parts Destroyed 2 | . . . 2 . . Melee Attacks . | . . . . . . Impact . | . . . . . . Slashing . | . . . . . . Piercing . | . . . . . . Sneak Attacks . | . . . . . . Combat Hostiles . | . . . . . . Follow-up Attacks . | . . . . . . Damage Inflicted 2000 | 169 688 45 1083 15 . Guns 1444 | 166 669 45 564 . . Cannons 434 | . . . 434 . . Explosions 74 | . . . 74 . . Melee . | . . . . . . Ramming 48 | 3 19 . 11 15 . Kinetic 394 | 42 234 11 107 . . Thermal 948 | 124 282 34 508 . . Explosive . | . . . . . . Electromagnetic 610 | . 153 . 457 . . Impact . | . . . . . . Slashing . | . . . . . . Piercing . | . . . . . . Highest Corruption 2 | . . . 2 2 2 Average Corruption 2 | . . . 2 2 2 Corruption Purged . | . . . . . . Effects 6 | . . . 3 2 1 Message Errors 2 | . . . . 2 . Heat Flow Errors 1 | . . . 1 . . Energy Discharges 2 | . . . 1 . 1 Data Loss (minor) 1 | . . . 1 . . Overload Shots . | . . . . . . Overflow Damage 27 | . . . 27 . . Projectiles 27 | . . . 27 . . Explosions . | . . . . . . Melee . | . . . . . . Knockbacks . | . . . . . . Impact . | . . . . . . Kinetic . | . . . . . . Secondary . | . . . . . . Self-Inflicted Damage 65 | . . . 65 . . Shots 2 | . . . 2 . . Rammed 6 | . 3 . 2 1 . Targets Rammed 10 | 1 4 . 3 2 . Kicked . | . . . . . . Crushed 4 | 1 1 . 1 1 . Highest Temperature 276 | 36 201 96 276 . . Average Temperature 57 | 18 47 27 76 . . Received Heat Transfer 351 | . 180 . 171 . . Siege Activations . | . . . . . . Robots Corrupted . | . . . . . . Combat Hostiles . | . . . . . . Parts Fried 1 | . . . 1 . . Impact Corruptions . | . . . . . . Robots Melted . | . . . . . . Combat Hostiles . | . . . . . . Parts Melted . | . . . . . . Heat Transferred 1795 | 370 553 45 827 . . Parts Sabotaged . | . . . . . . Parts Stolen . | . . . . . . Parts Stripped . | . . . . . . Power Chain Reactions 2 | . . . 2 . . Missiles Intercepted . | . . . . . . Alert | -11 -10 -10 -9 -9 -9 ------- Run | Scr Mat Min Mat Min Exi Peak Influence 258 | 40 170 . 258 105 . Initial 100 | . 26 . . 100 . Average 74 | 17 57 . 126 100 . Maximum Alert Level 1 | . . . 1 . . Low Security (%) 88 | 100 100 100 60 100 . Level 1 11 | . . . 39 . . Level 2 . | . . . . . . Level 3 . | . . . . . . Level 4 . | . . . . . . Level 5 . | . . . . . . High Security . | . . . . . . Max Security . | . . . . . . Squads Dispatched 5 | . 3 . 2 . . Investigation 4 | . 2 . 2 . . Extermination . | . . . . . . Reinforcement 1 | . 1 . . . . Assault . | . . . . . . Garrison . | . . . . . . Intercept . | . . . . . . Construction Impeded . | . . . . . . Haulers Reinforced . | . . . . . . Stealth | -11 -10 -10 -9 -9 -9 --------- Run | Scr Mat Min Mat Min Exi Distress Signals 7 | . 3 1 3 . . Communications Jammed . | . . . . . . Distress Signals . | . . . . . . Times Spotted 36 | . 19 1 16 . . Peak Tracking Total 4 | . 4 2 3 . . Tactical Retreats 3 | . . 1 2 . . Traps | -11 -10 -10 -9 -9 -9 ------- Run | Scr Mat Min Mat Min Exi Traps Triggered 2 | . 2 . . . . Indirectly . | . . . . . . Trap Hack Attempts . | . . . . . . Triggered . | . . . . . . Disarmed . | . . . . . . Reprogrammed . | . . . . . . Reused . | . . . . . . Traps Extracted . | . . . . . . Installed . | . . . . . . Triggered . | . . . . . . Machines | -11 -10 -10 -9 -9 -9 ---------- Run | Scr Mat Min Mat Min Exi Machines Disabled 2 | . . . 2 . . Max in Single Turn 1 | . . . 1 . . Machines Sabotaged . | . . . . . . Garrisons Compromised . | . . . . . . Overloaded Fab Kills . | . . . . . . Fab Network Shutdowns . | . . . . . . Hacking | -11 -10 -10 -9 -9 -9 --------- Run | Scr Mat Min Mat Min Exi Machines Accessed 11 | . 8 . 3 . . Terminals 11 | . 8 . 3 . . Fabricators . | . . . . . . Repair Stations . | . . . . . . Recycling Units . | . . . . . . Scanalyzers . | . . . . . . Garrison Access . | . . . . . . Total Hacks 45 | . 32 . 13 . . Successful 23 | . 18 . 5 . . Failed 20 | . 13 . 7 . . Catastrophic . | . . . . . . Database Lockouts 2 | . 1 . 1 . . Manual 34 | . 26 . 8 . . Terminals 45 | . 32 . 13 . . Fabricators . | . . . . . . Repair Stations . | . . . . . . Recycling Units . | . . . . . . Scanalyzers . | . . . . . . Garrison Access . | . . . . . . Terminal Hacks 14 | . 10 . 4 . . Part Schematic 1 | . . . 1 . . Robot Analysis 2 | . 2 . . . . Prototype ID Bank 3 | . 3 . . . . Branch Access Points 1 | . . . 1 . . Terminal Index 2 | . 1 . 1 . . Unreport Threat 1 | . 1 . . . . Locate Traps 1 | . . . 1 . . Recall Reinforcements 1 | . 1 . . . . Hauler Manifests 1 | . 1 . . . . Zone Layout 1 | . 1 . . . . Fabricator Hacks . | . . . . . . Repair Station Hacks . | . . . . . . Recycling Unit Hacks . | . . . . . . Scanalyzer . | . . . . . . Garrison Access Hacks . | . . . . . . Unauthorized Hacks 9 | . 8 . 1 . . Terminals 9 | . 8 . 1 . . Track 4 | . 4 . . . . Botnet 3 | . 2 . 1 . . Disrupt 1 | . 1 . . . . Operators 1 | . 1 . . . . Fabricators . | . . . . . . Repair Stations . | . . . . . . Recycling Units . | . . . . . . Scanalyzers . | . . . . . . Garrison Access . | . . . . . . Data Cores Recovered 2 | . 1 . 1 . . Used 1 | . . . 1 . . Hacking Detections 9 | . 6 . 3 . . Full Trace Events 2 | . . . 2 . . Feedback Events . | . . . . . . Feedback Blocked . | . . . . . . Robot Schematics Acquired . | . . . . . . Robots Built . | . . . . . . Matter . | . . . . . . Time . | . . . . . . Total Robot Build Rating . | . . . . . . Part Schematics Acquired 1 | . . . 1 . . Parts Built . | . . . . . . Matter . | . . . . . . Time . | . . . . . . Total Part Build Rating . | . . . . . . Parts Repaired . | . . . . . . Time . | . . . . . . Parts Recycled . | . . . . . . Recycled Matter . | . . . . . . Retrieved Matter . | . . . . . . Retrieved Components . | . . . . . . Parts Scanalyzed . | . . . . . . Part Schematics Acquired . | . . . . . . Parts Damaged . | . . . . . . Bothacking | -11 -10 -10 -9 -9 -9 ------------ Run | Scr Mat Min Mat Min Exi Used RIF Installer . | . . . . . . Robots Hacked . | . . . . . . Non-combat . | . . . . . . Combat . | . . . . . . Robot Hacks Applied . | . . . . . . Relay Couplers Released . | . . . . . . Robots Rewired . | . . . . . . Allies Hacked . | . . . . . . Hacks Repelled . | . . . . . . Allies | -11 -10 -10 -9 -9 -9 -------- Run | Scr Mat Min Mat Min Exi Total Allies . | . . . . . . Largest Group . | . . . . . . Highest-Rated Group . | . . . . . . Highest-Rated Ally . | . . . . . . Total Orders . | . . . . . . Ally Attacks . | . . . . . . Total Damage . | . . . . . . Kills . | . . . . . . Allies Corrupted . | . . . . . . Allies Melted . | . . . . . . Intel | -11 -10 -10 -9 -9 -9 ------- Run | Scr Mat Min Mat Min Exi Robot Analysis Total 2 | . 2 . . . . Derelict Logs Recovered 2 | . . . . 2 . Drone Launches . | . . . . . . Drone Recoveries . | . . . . . . Exploration | -11 -10 -10 -9 -9 -9 ------------- Run | Scr Mat Min Mat Min Exi Turns Passed 2612 | 169 1084 247 737 331 44 Spaces Moved 1314 | 79 565 129 310 204 27 Core 17 | 17 . . . . . Treads 1297 | 62 565 129 310 204 27 Legs . | . . . . . . Wheels . | . . . . . . Hover . | . . . . . . Flight . | . . . . . . Fastest Speed 50 | 50 160 160 160 160 160 Average Speed 158 | 136 160 160 160 160 160 Slowest Speed 160 | 160 160 160 160 160 160 Overloaded Moves . | . . . . . . Propulsion Burnouts . | . . . . . . Robots Hopped . | . . . . . . Cave-ins Triggered . | . . . . . . Exploration Rate (%) 42 | 4 93 51 41 57 9 Regions Visited 5 Branch Regions 3 Pre-discovered Areas . | . . . . . . Known Exits Taken 1 | . . . 1 . . Unknown Exits Taken 4 | 1 1 1 . 1 . Scrap Searched 2 | . . . . 2 . Spaces Dug 12 | . 7 . 5 . . Terrain Destroyed 17 | . 7 . 10 . . Melee . | . . . . . . Projectile 12 | . 7 . 5 . . AOE 5 | . . . 5 . . Terrain Rammed . | . . . . . . Walls Destroyed . | . . . . . . Machines Disabled . | . . . . . . Actions | -11 -10 -10 -9 -9 -9 --------- Run | Scr Mat Min Mat Min Exi Total 1594 | 111 656 142 450 208 27 Wait 11 | . 5 . 6 . . Move 1309 | 78 564 128 309 203 27 Hop . | . . . . . . Pick Up 44 | 8 13 . 22 1 . Fast Attach 9 | 4 1 . 4 . . Attach 14 | 3 . . 10 1 . Detach 5 | . 1 . 4 . . Swap 42 | 1 17 4 20 . . Drop 36 | 2 11 . 22 1 . Fire 114 | 14 40 10 50 . . Melee . | . . . . . . Ram . | . . . . . . Kick . | . . . . . . Crush 10 | 1 4 . 3 2 . Escape Stasis . | . . . . . . Rewire . | . . . . . . Trap . | . . . . . . Miscellaneous . | . . . . . . Route ------- -11/Scrapyard -10/Materials (discovered 4 exits: *Mat x3 / [*Min]) -10/Mines -9/Materials (discovered 4 exits: [*Mat] / *Min / *Sto x2) -9/Mines (discovered 2 exits: [*Mat] / [*Exi]) -9/Exiles History --------- Turn | Location | Event 50 | -11/Scrapyard | Discovered new exit (range 14) 170 | -11/Scrapyard | Entered Materials 227 | -10/Materials | Discovered new exit (range 16) 308 | -10/Materials | Build established: Mutant 441 | -10/Materials | Discovered new exit (range 15) 746 | -10/Materials | Central database locked down 774 | -10/Materials | Discovered new exit (range 16) 1022 | -10/Materials | Discovered new exit (range 16) 1254 | -10/Materials | Entered Mines 1290 | -10/Mines | Excavation squad dispatched 1290 | -10/Mines | A large section of the Mines collapsed 1488 | -10/Mines | Discovered new exit (range 9) 1501 | -10/Mines | Entered Materials 1501 | -9/Materials | Evolved 2 slots: Propulsion x1, Utility x1 1714 | -9/Materials | Discovered new exit (range 3) 1867 | -9/Materials | Discovered new exit (range 16) 1883 | -9/Materials | Identified exit to Mines 1883 | -9/Materials | Identified exit to Storage 2113 | -9/Materials | Build established: Scavenger-Mutant 2226 | -9/Materials | Central database locked down 2238 | -9/Materials | Entered Mines 2242 | -9/Mines | Learned Materials security intel 2245 | -9/Mines | Received a Rocket Launcher from a helpful Derelict 2311 | -9/Mines | Learned Materials interactive machine intel 2457 | -9/Mines | Discovered new exit (range 8) 2563 | -9/Mines | Deemed a non-threat by the Exiles lab entrance 2563 | -9/Mines | Discovered new exit (range 5) 2569 | -9/Mines | Entered Exiles 2569 | -9/Exiles | Found Exiles lab abandoned 2613 | -9/Exiles | Self-destructed Last Messages --------------- 02318_ Found Hover Unit. 02318_ Found 21 Matter. 02319_ Acquired 21 matter. 02382_ Slammed into R-06 Scavenger. 02457_ EXIT=FOUND 02508_ ALC2F,OE>LNHAOQ9 GZV#8TWLWCJ3:PZD> 02545_ Crushed T-07 Excavator. 02545_ T-07 Excavator destroyed. 02546_ Acquired 1 matter. 02547_ Searching scrap... 02547_ Found Hpw. Tractor Beam. 02547_ Found Arm. Wheel. 02547_ Found Armor Integrity Analyzer. 02547_ Found 21 Matter. 02548_ Acquired 11 matter. 02563_ "No threat detected, you may enter." 02563_ EXIT=FOUND LOCATION=UNKNOWN GOAL=ESCAPE 02594_ System corrupted: Energy discharge (-71). Map ----- +----------------------------------------------------+ | ?????????????????????????????????????????????????? | | ?????????????????????????????????????????????????? | | ?????????????????????????????????????????????????? | | ?????????????????????????????????????????????????? | | ?????????????????????????????????????????????????? | | ?????????????????????????????????????????????????? | | ?????????????????????????????????????????????????? | | ?????????????????????????????????????????????????? | | ?????????????????????????????????????????????????? | | ?????????????????????????????????????????????????? | | ?????????????????????????????????????????????????? | | ???????????????????????????????????????? ????????? | | ???????????????????????????????????????? ??????? | | ???????????????????????????????????????# #?????? | | ?????????????????????????????????????## ##????? | | ?????????????????????????????????????# #????? | | ?????????????????##??#???????????????# ?????? | | ????????????????##" ????????????????## ?????? | | ????????????????#" ??????????#???## #??????? | | ???????????????##" #?????????????# #??????? | | ?????????????### ##???????#?### #???????? | | ?????????????# ########## #???????? | | ?????????????# #""""## #????????? | | ?????????????? * ##???????? | | ???????????????????# * #???????? | | ????????????????????# @ ##??????? | | ???????????????????#"""""#### ###????? | | ???????????????????######???#### * ###??? | | ????????????????????#??????????##### ##?? | | ???????????????????????????????????### #?? | | ?????????????????????????????????????### #?? | | ???????????????????????????????????????### #?? | | ???????????????????????#????????????#???#" ##? | | ????????????????#???????????????????????#### ## | | ????????????????????????????#?????????????## | | ???????????????????????????????????????????## | | ??????????????????????????????????????#?????### | | ???????????????????????????????????????#??????# | | ?????????????????????????????#???##???????#???## | | ???????????????????????????????????????????????### | | ????????????????????????????#????#?#?????????????? | | ?????????????????????????????????????????????????? | | ?????????????????????????????????????????????????? | | ????????????????????????????????????????????#????? | | ?????????????????????????????????????????????????? | | ?????????????????????????????????????????????????? | | ?????????????????????????????????????????????????? | | ?????????????????????????????????????????????????? | | ?????????????????????????????????????????????????? | | ?????????????????????????????????????????????????? | +----------------------------------------------------+ Best States ------------- Heat Dissipation 28 Coolant Potential 50 Energy Generation 12 Energy Capacity 265 Matter Stores 300 Matter Capacity 300 Sight Range 16 Terrain Scan Range 16 Terrain Scan Density 10 Armor Coverage 225 Evasion (%) 50 Recoil Reduction 3 Offensive Hacking 10 Item Schematics ----------------- Lrg. Storage Unit | -9/Materials | Hacked Robot Schematics ------------------ None Fabricated ------------ Nothing Alien Tech Used ----------------- None Achievements -------------- None Challenges ------------ None Game ------ Seed CompositeChipNeutralizer Manual? 0 Play Time 00:27:58 Cumulative 499.6 hours Start 2022.01.27 @ 13:20:10 End 2022.01.27 @ 13:49:16 Sessions 1 Manual Loads 0 Difficulty Rogue Special Mode None Game No. 241 Rogue 114 Adventurer 125 Explorer 2 Win Type - Total 44 Types 37/3/2/0/1/0/0/0/1 Lore% 65 Gallery% 85 Achievement% 66 Wizard Run 0 Options --------- ASCII 0 Keyboard 1 Movement Numpad Keybinds 0 Fullscreen 1 Font 36/TerminusFine Map View 76x50 Tactical HUD 1 Map Filters NONE Filters NONE Steam 1 RUN: 94e7910a-45c9-40fc-8a0f-765e1fc623b7